bitfinex/quotes_BTCUSD_20250826
["timestamp","ask_amount","ask_price","bid_price","bid_amount"]
[1756217990731,1.17844555,110180.0,110170.0,0.01171998]
[1756217990941,1.17844555,110180.0,110170.0,0.00671998]
[1756217991373,1.17844555,110180.0,110170.0,0.01171998]
[1756217991783,1.16844555,110180.0,110170.0,0.01171998]
[1756217992202,0.67636114,110180.0,110170.0,0.01071998]
[1756217992405,0.18151929,110190.0,110170.0,0.1942576]
[1756217992606,5.74932741,110180.0,110170.0,0.1910276]
[1756217992813,1.1784837,110190.0,110180.0,0.18152114]
[1756217993020,0.50488,110190.0,110180.0,0.18348114]
[1756217993258,0.34,110190.0,110180.0,0.18671114]
[1756217993461,1.17842908,110190.0,110180.0,0.00519]
[1756217993891,1.17842908,110190.0,110180.0,0.18671114]
[1756217994071,1.17842908,110190.0,110180.0,0.00519]
[1756217995536,0.18152114,110180.0,110170.0,0.1852976]
[1756217995708,0.83844555,110180.0,110170.0,0.1872576]
[1756217996096,0.34636114,110180.0,110170.0,0.1872576]
[1756217996311,0.83844555,110180.0,110170.0,0.00571998]
[1756217996499,1.17963555,110180.0,110170.0,0.00052998]
[1756217996778,1.27109757,110180.0,110170.0,0.00052998]
[1756217996979,6.04578959,110180.0,110170.0,0.00052998]
[1756217997183,6.04652959,110180.0,110170.0,0.00252998]
[1756217997400,6.1846512,110180.0,110170.0,0.00252998]
[1756217997779,6.1846512,110180.0,110170.0,0.00352998]
[1756217998207,6.1846512,110180.0,110170.0,0.00252998]
[1756217998726,6.1856512,110180.0,110170.0,0.00252998]
[1756217999112,6.1849112,110180.0,110170.0,0.00052998]
[1756217999351,5.4353515,110180.0,110170.0,0.00248998]
[1756217999561,6.09327591,110180.0,110170.0,0.00248998]
[1756217999775,6.09446591,110180.0,110170.0,0.00052998]
[1756217999998,5.86431057,110180.0,110170.0,0.00571998]
[1756218000216,6.02915057,110180.0,110170.0,0.00571998]
[1756218000755,5.93768855,110180.0,110170.0,0.00571998]
[1756218000979,0.002,110180.0,110170.0,0.1872576]
[1756218001492,0.1648,110200.0,110190.0,0.1814969]
[1756218001691,0.83837261,110200.0,110190.0,0.00519]
[1756218001910,0.6862882,110200.0,110190.0,0.18669467]
[1756218002129,0.6862882,110200.0,110190.0,0.00519]
[1756218002377,0.18150467,110190.0,110180.0,0.18152044]
[1756218002634,1.17837261,110200.0,110190.0,0.00519]
[1756218003545,1.29943882,110200.0,110190.0,0.00519]
[1756218003963,1.29943882,110200.0,110190.0,0.18669467]
[1756218004172,1.29943882,110200.0,110190.0,0.00519]
[1756218004806,0.34,110200.0,110190.0,0.18869467]
[1756218005012,0.6862882,110200.0,110190.0,0.18869467]
[1756218005879,1.29943882,110200.0,110190.0,0.00719]
[1756218006504,0.6862882,110200.0,110190.0,0.18869467]
[1756218006721,0.5214882,110200.0,110190.0,0.19069467]
[1756218006945,0.27550942,110220.0,110200.0,0.1814882]
[1756218007149,4.93871473,110210.0,110190.0,0.28604192]
[1756218007362,0.34623173,110210.0,110200.0,0.00195]
[1756218007801,0.1814882,110200.0,110190.0,0.18869408]
[1756218008008,0.96140882,110200.0,110190.0,0.002]
[1756218008227,0.95939882,110200.0,110190.0,0.18664467]
[1756218008486,0.52147173,110210.0,110200.0,0.1814882]
[1756218008696,0.35949112,110210.0,110200.0,0.1866282]
[1756218009170,0.34,110220.0,110210.0,0.18145682]
[1756218009391,0.35951038,110220.0,110210.0,0.18659682]
[1756218009608,0.3461988,110230.0,110210.0,0.18659682]
[1756218009864,4.94069827,110220.0,110210.0,0.18659682]
[1756218010070,0.79660589,110220.0,110210.0,0.00514]
[1756218010282,0.79660589,110220.0,110210.0,0.18661173]
[1756218010494,0.002,110220.0,110210.0,0.18661173]
[1756218010703,1.29934942,110230.0,110210.0,0.18661173]
[1756218010904,0.35951792,110230.0,110220.0,0.18464527]
[1756218011120,0.35951792,110230.0,110220.0,0.18659527]
[1756218011329,0.20562347,110250.0,110220.0,0.44277729]
[1756218011537,0.02797863,110250.0,110240.0,0.18142235]
[1756218011740,0.0001427,110250.0,110240.0,0.44274437]
[1756218012157,0.0001427,110250.0,110240.0,0.27802437]
[1756218012370,0.0001427,110250.0,110240.0,0.44274437]
[1756218013398,0.0001427,110250.0,110240.0,0.48284487]
[1756218014029,0.18154859,110250.0,110240.0,0.31812487]
[1756218014237,0.18154859,110250.0,110240.0,0.00514]
[1756218014439,0.79469921,110250.0,110240.0,0.18656235]
[1756218014651,0.79469921,110250.0,110240.0,0.18856235]
[1756218014853,0.79469921,110250.0,110240.0,0.19056235]
[1756218015080,0.18154859,110250.0,110240.0,0.19056235]
[1756218015294,0.18154859,110250.0,110240.0,0.00914]
[1756218015504,0.18352859,110250.0,110240.0,0.004]
[1756218015710,0.79667921,110250.0,110240.0,0.004]
[1756218015939,0.79469921,110250.0,110240.0,0.00595]
[1756218016583,1.13668921,110250.0,110240.0,0.004]
[1756218016796,1.13668921,110250.0,110240.0,0.18542235]
[1756218017007,0.34604589,110250.0,110240.0,0.19056235]
[1756218017211,0.79455651,110250.0,110240.0,0.19056235]
[1756218017870,0.18140589,110250.0,110240.0,0.00914]
[1756218018491,0.79653651,110250.0,110240.0,0.001]
[1756218018800,0.79927651,110250.0,110240.0,0.001]
[1756218019009,0.18338589,110250.0,110240.0,0.003]
[1756218019226,0.18140589,110250.0,110240.0,0.00814]
[1756218019441,0.18140589,110250.0,110240.0,0.18956235]
[1756218019656,0.18140589,110250.0,110240.0,0.01454355]
[1756218019912,0.18339589,110250.0,110240.0,0.003]
[1756218020141,0.52140589,110250.0,110240.0,0.00495]
[1756218020339,0.52140589,110250.0,110240.0,0.00814]
[1756218020804,0.52140589,110250.0,110240.0,0.00914]
[1756218021068,0.52140589,110250.0,110240.0,0.18956235]
[1756218021324,0.34,110260.0,110250.0,0.18140589]
[1756218021573,0.34,110260.0,110250.0,0.18335589]
[1756218021824,0.69507772,110270.0,110250.0,0.18654589]
[1756218022073,4.93863244,110260.0,110250.0,0.18654589]
[1756218022320,0.18138944,110260.0,110250.0,0.18654589]
[1756218022806,0.69507772,110270.0,110250.0,0.18754589]
[1756218023080,0.01680368,110280.0,110260.0,0.34913944]
[1756218023327,0.5,110280.0,110270.0,0.18651299]
[1756218023570,5.43859954,110280.0,110270.0,0.18651299]
[1756218023806,0.34,110280.0,110270.0,0.18651299]
[1756218024028,0.53786671,110280.0,110270.0,0.18651299]
[1756218024253,0.52135654,110280.0,110270.0,0.18651299]
[1756218024472,0.52135654,110280.0,110270.0,0.00514]
[1756218024692,1.01292852,110280.0,110270.0,0.00195]
[1756218025165,1.01292852,110280.0,110260.0,0.27604146]
[1756218025166,0.18137299,110270.0,110260.0,0.25917202]
[1756218025410,0.18137299,110270.0,110260.0,0.48238399]
[1756218025664,0.53776013,110280.0,110270.0,0.002]
[1756218025887,1.03132211,110280.0,110270.0,0.002]
[1756218026100,0.34,110280.0,110270.0,0.18851299]
[1756218026313,0.20869871,110310.0,110280.0,0.18135654]
[1756218026531,0.6814322,110310.0,110290.0,0.34904467]
[1756218026758,0.19033678,110310.0,110290.0,0.34904467]
[1756218026964,0.00890707,110310.0,110300.0,0.18327366]
[1756218027177,0.00890707,110310.0,110300.0,0.18646366]
[1756218027382,0.19021429,110310.0,110300.0,0.18646366]
[1756218027590,0.19021429,110310.0,110300.0,0.00514]
[1756218027797,0.53021429,110310.0,110300.0,0.18646366]
[1756218028008,0.54667107,110310.0,110300.0,0.18646366]
[1756218028423,0.01693334,110310.0,110300.0,0.76949766]
[1756218028634,0.0002,110330.0,110300.0,0.76949766]
[1756218028635,0.5002,110330.0,110320.0,0.18129079]
[1756218028839,0.00862828,110330.0,110320.0,0.44237281]
[1756218029064,0.00877115,110330.0,110320.0,0.44237281]
[1756218030244,0.00034287,110330.0,110320.0,0.93394479]
[1756218030448,0.00034287,110330.0,110320.0,0.44237281]
[1756218030947,0.00034287,110330.0,110320.0,0.44233281]
[1756218033001,0.00034287,110330.0,110320.0,0.48604222]
[1756218033416,0.00034287,110330.0,110320.0,0.49004222]
[1756218035097,0.00034287,110330.0,110320.0,0.48604222]
[1756218035552,0.00034287,110330.0,110320.0,0.48904222]
[1756218036383,0.00034287,110330.0,110320.0,1.10048448]
[1756218036961,0.00034287,110330.0,110320.0,0.48904222]
[1756218037292,0.00034287,110330.0,110320.0,1.10048448]
[1756218037886,0.00034287,110330.0,110320.0,0.48904222]
[1756218038372,0.00034287,110330.0,110320.0,0.32460222]
[1756218038547,0.00034287,110330.0,110320.0,0.48896222]
[1756218039442,0.00034287,110330.0,110320.0,0.32460222]
[1756218039663,0.00034287,110330.0,110320.0,0.48892222]
[1756218040102,0.00034287,110330.0,110320.0,0.32460222]
[1756218040529,0.00034287,110330.0,110320.0,0.48892222]
[1756218041153,0.00034287,110330.0,110320.0,1.10036448]
[1756218041607,0.00034287,110330.0,110320.0,1.4578135]
[1756218041836,0.00034287,110330.0,110320.0,0.84637124]
[1756218042059,0.00034287,110330.0,110320.0,1.4578135]
[1756218042469,0.00034287,110330.0,110320.0,0.84637124]
[1756218042700,0.00034287,110330.0,110320.0,1.4558135]
[1756218042935,0.00034287,110330.0,110320.0,1.4528135]
[1756218043173,0.0002,110340.0,110330.0,1.15016563]
[1756218043406,0.0002,110340.0,110330.0,1.24471765]
[1756218043628,0.0002,110340.0,110330.0,1.24685765]
[1756218045153,0.0002,110340.0,110330.0,1.81109765]
[1756218045586,0.0002,110340.0,110330.0,1.41109765]
[1756218045805,0.0002,110340.0,110330.0,0.79965539]
[1756218046014,0.0002,110340.0,110330.0,1.81109765]
[1756218046239,0.0002,110340.0,110330.0,1.65185765]
[1756218046509,0.0002,110340.0,110330.0,1.42009765]
[1756218046735,0.0002,110340.0,110330.0,0.28696637]
[1756218046957,0.00218,110340.0,110330.0,0.44597637]
[1756218047208,0.00218,110340.0,110330.0,0.44811637]
[1756218047432,0.0002,110340.0,110330.0,0.45120637]
[1756218047881,0.00218,110340.0,110330.0,0.28173637]
[1756218048335,0.00218,110340.0,110330.0,0.44593637]
[1756218049005,0.18343793,110340.0,110330.0,0.44593637]
[1756218049233,0.18617793,110340.0,110330.0,0.26466202]
[1756218049479,0.79762019,110340.0,110330.0,0.1682]
[1756218049705,0.18127435,110330.0,110320.0,0.04170941]
[1756218049926,0.18127435,110330.0,110320.0,0.3872002]
[1756218050141,0.18127435,110330.0,110320.0,0.1642]
[1756218050409,0.18326435,110330.0,110320.0,0.1642]
[1756218050638,0.18131957,110310.0,110290.0,0.29265696]
[1756218050868,0.18131957,110310.0,110300.0,0.25566202]
[1756218051314,0.18603957,110310.0,110300.0,0.1642]
[1756218051565,0.18333957,110310.0,110300.0,0.1642]
[1756218051753,0.18603957,110310.0,110300.0,0.1642]
[1756218052211,0.18132366,110300.0,110290.0,0.11179474]
[1756218052434,0.79478592,110300.0,110290.0,0.07019656]
[1756218052654,0.79478592,110300.0,110290.0,0.23435656]
[1756218052655,0.18604366,110300.0,110290.0,0.23435656]
[1756218052877,0.18604366,110300.0,110290.0,0.07019656]
[1756218053297,0.88893121,110300.0,110290.0,0.16463656]
[1756218053528,0.6775898,110300.0,110290.0,0.16463656]
[1756218053743,0.18334366,110300.0,110290.0,0.34597666]
[1756218053962,0.00202,110300.0,110290.0,0.34697666]
[1756218054228,0.18330366,110300.0,110290.0,0.43943868]
[1756218054438,0.00198,110300.0,110290.0,0.43843868]
[1756218054642,0.00198,110300.0,110290.0,0.44057868]
[1756218054869,0.67286571,110310.0,110290.0,0.44057868]
[1756218055077,0.34845175,110310.0,110300.0,0.18132366]
[1756218055291,0.53173884,110310.0,110300.0,0.18132366]
[1756218055541,0.53173884,110310.0,110290.0,0.44152868]
[1756218055801,0.53173884,110310.0,110300.0,0.18132366]
[1756218056017,0.18132366,110300.0,110290.0,0.44152868]
[1756218056242,0.52130722,110310.0,110290.0,0.44366868]
[1756218056460,0.52976841,110310.0,110300.0,0.18132366]
[1756218056673,0.53174841,110310.0,110290.0,0.44152868]
[1756218056894,0.53174841,110310.0,110300.0,0.16416]
[1756218057690,0.53174841,110310.0,110300.0,0.34548366]
[1756218057884,0.35044119,110310.0,110300.0,0.34548366]
[1756218058137,0.19178841,110310.0,110300.0,0.18132366]
[1756218058347,0.18132366,110300.0,110290.0,0.09493858]
[1756218058552,0.68335198,110300.0,110290.0,0.16567656]
[1756218059142,0.19180584,110300.0,110290.0,0.16567656]
[1756218059374,0.01048218,110300.0,110290.0,0.34701666]
[1756218059629,0.19180584,110300.0,110290.0,0.00147656]
[1756218059845,1.1127879,110300.0,110290.0,0.16563656]
[1756218060093,1.03239761,110300.0,110290.0,0.00047656]
[1756218060303,1.01921543,110300.0,110290.0,0.00047656]
[1756218060524,1.02037543,110300.0,110290.0,0.00047656]
[1756218060715,0.52766929,110300.0,110290.0,0.18704666]
[1756218060976,0.52766929,110300.0,110290.0,0.18904666]
[1756218061195,0.00634563,110300.0,110290.0,0.18904666]
[1756218061421,0.18132366,110300.0,110290.0,0.00570656]
[1756218061627,1.02190146,110320.0,110300.0,0.18132366]
[1756218061842,4.93855022,110310.0,110300.0,0.18441366]
[1756218062094,0.18232366,110300.0,110290.0,0.27327868]
[1756218062275,0.18232366,110300.0,110290.0,0.27541868]
[1756218062528,0.18232366,110300.0,110290.0,0.27850868]
[1756218062529,0.001,110300.0,110290.0,0.27850868]
[1756218062744,0.18348366,110300.0,110290.0,0.09716858]
[1756218062966,0.18348366,110300.0,110290.0,0.00047656]
[1756218063196,0.18348366,110300.0,110290.0,0.34597666]
[1756218063408,0.18348366,110300.0,110290.0,0.16463656]
[1756218063624,0.18348366,110300.0,110290.0,0.34597666]
[1756218063817,0.001,110300.0,110290.0,0.35120666]
[1756218064020,0.18130722,110310.0,110300.0,0.18132366]
[1756218064223,0.18130722,110310.0,110300.0,0.00523]
[1756218064437,0.18130722,110310.0,110300.0,0.18655366]
[1756218064648,1.03801128,110320.0,110310.0,0.18130722]
[1756218064649,0.34,110320.0,110310.0,0.18130722]
[1756218064862,0.19052082,110340.0,110320.0,0.18129079]
[1756218065066,5.43851735,110330.0,110320.0,0.18438079]
[1756218065274,0.52145793,110340.0,110330.0,0.18127435]
[1756218065477,0.52261793,110340.0,110320.0,0.44000281]
[1756218065683,0.52261793,110340.0,110330.0,0.18127435]
[1756218065898,0.3402,110340.0,110330.0,0.18341435]
[1756218066112,0.0002,110340.0,110330.0,0.18650435]
[1756218066333,0.5002,110340.0,110330.0,0.25622435]
[1756218066523,5.77870093,110340.0,110330.0,0.25622435]
[1756218066732,0.52261793,110340.0,110330.0,0.06972]
[1756218067156,1.01416407,110340.0,110330.0,0.23388]
[1756218067563,5.77212707,110340.0,110330.0,0.23388]
[1756218067768,5.77846605,110340.0,110330.0,0.16516]
[1756218067974,5.77846605,110340.0,110330.0,0.001]
[1756218068392,5.79794288,110340.0,110330.0,0.001]
[1756218068597,5.28619991,110340.0,110330.0,0.001]
[1756218068803,5.28619991,110340.0,110330.0,0.002]
[1756218068804,0.52895691,110340.0,110330.0,0.002]
[1756218069213,1.02122305,110340.0,110330.0,0.001]
[1756218069424,5.79794416,110340.0,110330.0,0.001]
[1756218069670,1.02050305,110340.0,110330.0,0.001]
[1756218070317,1.03998214,110340.0,110330.0,0.16516]
[1756218070536,1.03998282,110340.0,110330.0,0.34643435]
[1756218070777,0.52145793,110340.0,110330.0,0.35157435]
[1756218071214,0.3402,110340.0,110330.0,0.35157435]
[1756218071435,0.0002,110340.0,110330.0,0.44303637]
[1756218071984,0.0002,110340.0,110330.0,0.93358251]
[1756218072544,0.0012,110340.0,110330.0,0.93358251]
[1756218072869,0.0012,110340.0,110330.0,1.29103153]
[1756218072870,0.0002,110340.0,110330.0,1.29103153]
[1756218073370,0.0002,110340.0,110330.0,1.29203153]
[1756218073862,0.0002,110340.0,110330.0,1.29103153]
[1756218074276,0.0002,110340.0,110330.0,1.29203153]
[1756218074491,0.0002,110340.0,110330.0,0.63632539]
[1756218074686,0.0002,110340.0,110330.0,1.12787153]
[1756218074895,0.0002,110340.0,110330.0,0.63632539]
[1756218075129,0.0002,110340.0,110330.0,0.79944539]
[1756218075524,0.0002,110340.0,110330.0,0.78199637]
[1756218075955,0.0002,110340.0,110330.0,0.28087637]
[1756218076164,0.0002,110340.0,110330.0,0.43985637]
[1756218076372,0.0002,110340.0,110330.0,0.44499637]
[1756218076575,0.0002,110340.0,110330.0,0.44899637]
[1756218076937,0.18261793,110340.0,110330.0,0.44385637]
[1756218077165,0.00136,110340.0,110330.0,0.27973637]
[1756218077366,0.67416407,110340.0,110330.0,0.26258202]
[1756218077600,0.18261793,110340.0,110330.0,0.26258202]
[1756218077961,0.00865802,110340.0,110330.0,0.44899637]
[1756218078173,0.0002,110340.0,110330.0,0.44899637]
[1756218078807,0.0002,110340.0,110330.0,0.44499637]
[1756218079037,0.0002,110340.0,110330.0,0.93654251]
[1756218079236,0.0002,110340.0,110330.0,0.93754251]
[1756218079637,0.0002,110340.0,110330.0,0.93454251]
[1756218079839,0.0002,110340.0,110330.0,0.93554251]
[1756218080257,0.0002,110340.0,110330.0,0.93754251]
[1756218080453,0.0002,110340.0,110330.0,0.93654251]
[1756218080879,0.0002,110340.0,110330.0,0.93954251]
[1756218081088,0.0002,110340.0,110330.0,0.77542251]
[1756218081300,0.0002,110340.0,110330.0,0.44795637]
[1756218081731,0.0002,110340.0,110330.0,0.93950251]
[1756218082496,0.0002,110340.0,110330.0,0.93650251]
[1756218082711,0.0002,110340.0,110330.0,0.44495637]
[1756218082891,0.0002,110340.0,110330.0,0.93650251]
[1756218083126,0.0002,110340.0,110330.0,0.94050251]
[1756218083538,0.0002,110340.0,110330.0,0.94046251]
[1756218085025,0.0002,110340.0,110330.0,0.28487637]
[1756218085262,0.0002,110340.0,110330.0,0.44891637]
[1756218085436,0.0002,110340.0,110330.0,0.28487637]
[1756218085645,0.0002,110340.0,110330.0,0.44891637]
[1756218085907,0.0002,110340.0,110330.0,0.94046251]
[1756218087408,0.0002,110340.0,110330.0,1.29791153]
[1756218088065,0.0002,110340.0,110330.0,0.80636539]
[1756218088284,0.0002,110340.0,110330.0,0.64232539]
[1756218088511,0.0002,110340.0,110330.0,0.78887637]
[1756218088724,0.0002,110340.0,110330.0,1.28042251]
[1756218088942,0.0002,110340.0,110330.0,1.27642251]
[1756218089387,0.0002,110340.0,110330.0,1.28142251]
[1756218092700,0.0002,110340.0,110330.0,1.27842251]
[1756218093122,0.0002,110340.0,110330.0,1.28142251]
[1756218093535,0.0002,110340.0,110330.0,1.27842251]
[1756218093944,0.0002,110340.0,110330.0,1.28242251]
[1756218094579,0.0002,110340.0,110330.0,1.29987153]
[1756218095206,0.0002,110340.0,110330.0,1.29487153]
[1756218095657,0.0002,110340.0,110330.0,1.30187153]
[1756218096129,0.0002,110340.0,110330.0,1.70187153]
[1756218097304,0.0002,110350.0,110340.0,0.18125793]
[1756218097518,0.0002,110370.0,110360.0,0.52122508]
[1756218097746,0.00034277,110370.0,110360.0,1.29077226]
[1756218098828,0.00034277,110370.0,110360.0,0.63526612]
[1756218099038,0.00034277,110370.0,110360.0,1.29077226]
[1756218099873,0.00034277,110370.0,110360.0,1.12681226]
[1756218100084,0.00034277,110370.0,110360.0,1.10936324]
[1756218100295,0.00150277,110370.0,110360.0,1.27017324]
[1756218100477,0.00034277,110370.0,110360.0,1.27332324]
[1756218100677,0.00034277,110370.0,110360.0,1.31373946]
[1756218100896,0.00150277,110370.0,110360.0,0.48206332]
[1756218101514,0.00150277,110370.0,110360.0,0.97558946]
[1756218101727,0.00034277,110370.0,110360.0,0.98173946]
[1756218101946,0.00034277,110370.0,110360.0,0.49019332]
[1756218102154,0.00034277,110370.0,110360.0,0.97873946]
[1756218102599,0.00034277,110370.0,110360.0,0.98073946]
[1756218103454,0.00150277,110370.0,110360.0,0.48919332]
[1756218103663,0.00034277,110370.0,110360.0,0.98073946]
[1756218104098,0.00150277,110370.0,110360.0,0.98073946]
[1756218104536,0.00150277,110370.0,110360.0,0.13887824]
[1756218104751,0.18271143,110370.0,110360.0,0.20355824]
[1756218104936,0.19190451,110370.0,110360.0,0.20355824]
[1756218105217,0.19190451,110370.0,110360.0,0.04241622]
[1756218105428,0.75597025,110370.0,110360.0,0.21033622]
[1756218105670,0.26442411,110370.0,110360.0,0.20833622]
[1756218105885,0.26442411,110370.0,110360.0,0.21233622]
[1756218107582,0.75597025,110370.0,110360.0,0.04841622]
[1756218107794,0.75597025,110370.0,110360.0,0.21233622]
[1756218108014,0.75597025,110370.0,110360.0,0.04741622]
[1756218108252,1.21330702,110370.0,110360.0,0.003]
[1756218108466,0.18122508,110360.0,110350.0,0.16392]
[1756218108687,0.1812415,110350.0,110340.0,0.18125777]
[1756218108907,0.18122755,110360.0,110350.0,0.1812415]
[1756218109120,0.00963831,110360.0,110350.0,0.1812415]
[1756218109331,0.00847831,110360.0,110350.0,0.76937966]
[1756218109558,0.18155181,110370.0,110360.0,0.18122508]
[1756218109742,0.00998154,110370.0,110360.0,0.34514508]
[1756218109980,0.6911902,110370.0,110360.0,0.34514508]
[1756218110197,0.0099815,110370.0,110360.0,0.93328324]
[1756218110406,0.0088215,110370.0,110360.0,1.00296324]
[1756218110613,0.0088215,110370.0,110360.0,0.5114171]
[1756218112154,0.0088215,110370.0,110360.0,1.00296324]
[1756218112370,0.00882164,110370.0,110360.0,1.00296324]
[1756218112583,0.00034277,110370.0,110360.0,1.00396324]
[1756218112808,0.00034277,110370.0,110360.0,0.5124171]
[1756218113014,0.00034277,110370.0,110360.0,1.00696324]
[1756218113223,0.00034277,110370.0,110360.0,1.00596324]
[1756218113890,0.00034277,110370.0,110360.0,1.00696324]
[1756218114737,0.00034277,110370.0,110360.0,1.36641226]
[1756218115169,0.00034277,110370.0,110360.0,1.36241226]
[1756218115414,0.00034277,110370.0,110360.0,1.36041226]
[1756218115634,0.00034277,110370.0,110360.0,1.36541226]
[1756218116171,0.00034277,110370.0,110360.0,1.36841226]
[1756218116594,0.00034277,110370.0,110360.0,1.46399226]
[1756218116801,0.00034277,110370.0,110360.0,0.87686612]
[1756218117015,0.00034277,110370.0,110360.0,1.36841226]
[1756218117629,0.00034277,110370.0,110360.0,1.36341226]
[1756218117829,0.00034277,110370.0,110360.0,1.19949226]
[1756218118027,0.00034277,110370.0,110360.0,1.36337226]
[1756218118467,0.00034277,110370.0,110360.0,1.36037226]
[1756218118681,0.00034277,110370.0,110360.0,1.19649226]
[1756218118889,0.00034277,110370.0,110360.0,1.36437226]
[1756218119514,0.00034277,110370.0,110360.0,1.37137226]
[1756218120460,0.00034277,110370.0,110360.0,0.8623771]
[1756218120672,0.00034277,110370.0,110360.0,0.6984971]
[1756218120885,0.00034277,110370.0,110360.0,1.35388324]
[1756218121319,1e-08,110390.0,110370.0,1.23020382]
[1756218121533,1e-08,110390.0,110380.0,1.29001922]
[1756218121769,0.0725196,110440.0,110430.0,0.1811102]
[1756218121982,0.0725196,110440.0,110430.0,0.99763836]
[1756218121983,0.08098559,110440.0,110430.0,0.99763836]
[1756218122195,0.08262168,110440.0,110430.0,0.50609222]
[1756218122849,0.01010208,110440.0,110430.0,0.50609222]
[1756218123561,0.01010208,110440.0,110430.0,0.34225222]
[1756218123772,0.19191588,110440.0,110430.0,0.50609222]
[1756218123991,0.19191588,110440.0,110430.0,0.16114202]
[1756218124204,0.19191588,110440.0,110430.0,0.10947074]
[1756218124447,0.19191588,110440.0,110430.0,0.27331074]
[1756218124664,0.19191588,110440.0,110430.0,0.03979074]
[1756218124892,0.01010208,110440.0,110430.0,0.47846683]
[1756218125100,0.01010208,110440.0,110430.0,0.43941222]
[1756218125308,0.01010208,110440.0,110430.0,0.44041222]
[1756218125517,0.01010208,110440.0,110430.0,0.93408836]
[1756218125518,0.00894208,110440.0,110430.0,0.93408836]
[1756218125908,0.00894208,110440.0,110430.0,0.44154222]
[1756218126330,0.00047609,110440.0,110430.0,0.44154222]
[1756218126552,0.00047609,110440.0,110430.0,0.93308836]
[1756218126770,0.00047609,110440.0,110430.0,0.44154222]
[1756218127210,0.00047609,110440.0,110430.0,0.44254222]
[1756218127872,0.00047609,110440.0,110430.0,0.93408836]
[1756218128121,0.00047609,110440.0,110430.0,0.44554222]
[1756218128334,0.00047609,110440.0,110430.0,1.33708836]
[1756218128547,0.00047609,110440.0,110430.0,0.84454222]
[1756218128791,0.00047609,110440.0,110430.0,0.88552125]
[1756218129012,0.00047609,110440.0,110430.0,0.48952125]
[1756218129225,0.00047609,110440.0,110430.0,0.48948125]
[1756218129657,0.18156989,110440.0,110430.0,0.32772125]
[1756218129874,0.18272989,110440.0,110430.0,0.48635125]
[1756218130311,0.01006456,110440.0,110430.0,0.48635125]
[1756218130525,0.19115836,110440.0,110430.0,0.30524105]
[1756218130809,0.19115836,110440.0,110430.0,0.48635125]
[1756218131023,0.19115836,110440.0,110430.0,0.30524105]
[1756218131455,0.00890456,110440.0,110430.0,0.49152125]
[1756218131894,0.00047609,110440.0,110430.0,0.97606739]
[1756218132339,0.00047609,110440.0,110430.0,0.97406739]
[1756218132554,0.00047609,110440.0,110430.0,0.48552125]
[1756218132768,0.00047609,110440.0,110430.0,0.97706739]
[1756218133195,0.00047609,110440.0,110430.0,0.97806739]
[1756218133411,0.00047609,110440.0,110430.0,0.99551641]
[1756218133629,0.00047609,110440.0,110430.0,0.99451641]
[1756218133857,0.00047609,110440.0,110430.0,1.33451641]
[1756218134071,0.00047609,110440.0,110430.0,0.84297027]
[1756218134288,0.00047609,110440.0,110430.0,1.53451641]
[1756218134523,0.0002,110460.0,110450.0,0.19852643]
[1756218134745,0.00034276,110460.0,110450.0,1.84644073]
[1756218134959,0.00034276,110460.0,110450.0,1.85161073]
[1756218135186,0.00034276,110460.0,110450.0,1.76006459]
[1756218135890,0.00034276,110460.0,110450.0,1.26851845]
[1756218136103,0.00034276,110460.0,110450.0,1.76006459]
[1756218136777,0.00034276,110460.0,110450.0,1.59634459]
[1756218136992,0.00034276,110460.0,110450.0,1.76006459]
[1756218138148,1e-08,110460.0,110450.0,2.65161073]
[1756218138366,8e-05,110480.0,110470.0,0.18104462]
[1756218138551,8e-05,110480.0,110470.0,0.92999583]
[1756218138807,8e-05,110480.0,110470.0,1.27290278]
[1756218139248,8e-05,110480.0,110470.0,1.18135664]
[1756218139464,1e-08,110480.0,110470.0,1.6903518]
[1756218139697,0.0002,110490.0,110480.0,0.53847726]
[1756218139920,0.027206,110550.0,110540.0,0.18092998]
[1756218140135,0.0095648,110550.0,110540.0,0.41424996]
[1756218140378,0.00854751,110550.0,110540.0,0.83874812]
[1756218140631,0.18088204,110570.0,110550.0,0.18091361]
[1756218140860,0.00116,110550.0,110540.0,0.29211892]
[1756218141088,0.67433975,110550.0,110540.0,0.11118894]
[1756218141559,0.00188,110550.0,110540.0,0.20522894]
[1756218141797,0.18279361,110550.0,110540.0,0.04154894]
[1756218142032,0.18279361,110550.0,110540.0,0.16368]
[1756218142553,0.18092998,110540.0,110530.0,0.06964]
[1756218142772,0.86736195,110540.0,110530.0,0.32482202]
[1756218142983,0.86808195,110540.0,110530.0,0.32482202]
[1756218143206,0.86808195,110540.0,110530.0,0.20521639]
[1756218143431,0.18095829,110530.0,110510.0,0.06964]
[1756218143622,0.18095829,110530.0,110520.0,0.16368]
[1756218143879,0.18211829,110530.0,110520.0,0.16368]
[1756218144355,0.18096272,110520.0,110510.0,0.16110202]
[1756218144570,0.00116,110520.0,110510.0,0.50568111]
[1756218144784,0.18212272,110520.0,110510.0,0.32484473]
[1756218145223,0.00116,110520.0,110510.0,0.50582382]
[1756218145441,0.18212272,110520.0,110510.0,0.16124473]
[1756218145653,0.86739469,110520.0,110510.0,0.23338271]
[1756218145864,0.18212272,110520.0,110510.0,0.06978271]
[1756218146050,0.86811469,110520.0,110510.0,0.23342271]
[1756218146350,0.18284272,110520.0,110510.0,0.23742271]
[1756218146572,0.00116,110520.0,110510.0,0.55081238]
[1756218146804,0.18163361,110550.0,110530.0,0.18094634]
[1756218147018,0.18163361,110550.0,110520.0,0.18096272]
[1756218147019,0.18092998,110540.0,110520.0,0.18096272]
[1756218147237,0.18092998,110540.0,110530.0,0.16388]
[1756218147430,0.18995929,110550.0,110530.0,0.34482634]
[1756218147686,0.8923104,110560.0,110530.0,0.43628836]
[1756218147894,0.00116,110540.0,110530.0,0.43628836]
[1756218148131,0.18208998,110540.0,110530.0,0.43628836]
[1756218148779,0.52992608,110570.0,110550.0,0.18091001]
[1756218148780,0.18992608,110570.0,110550.0,0.18091001]
[1756218149003,5.43930025,110560.0,110540.0,0.2527916]
[1756218149234,0.18205725,110560.0,110550.0,0.1642]
[1756218149456,0.86732922,110560.0,110550.0,0.1642]
[1756218149678,0.86804922,110560.0,110550.0,0.1642]
[1756218150130,0.86780455,110560.0,110550.0,0.1642]
[1756218150567,0.18091361,110550.0,110540.0,0.20161957]
[1756218150779,0.86734558,110550.0,110540.0,0.11015755]
[1756218150995,0.86734558,110550.0,110540.0,0.27443755]
[1756218151223,0.18137258,110560.0,110540.0,0.55199955]
[1756218151412,0.18091361,110550.0,110540.0,0.55199955]
[1756218151684,0.86664455,110560.0,110540.0,0.55199955]
[1756218151975,0.18091361,110550.0,110540.0,0.36589957]
[1756218152262,0.18091361,110550.0,110540.0,0.36585957]
[1756218152560,0.19047515,110550.0,110540.0,0.54678955]
[1756218152787,0.18931515,110550.0,110540.0,0.36685957]